fUST/lending_fUST_20260118
["ID","MTS","AMOUNT","RATE_DAILY","PERIOD"]
[402382985,1768669876878,-500.0,0.0001726,3]
[402382986,1768669876887,-500.0,0.0001726,3]
[402382987,1768669876897,-500.0,0.0001726,3]
[402382988,1768669876907,-1259.96,0.0001726,3]
[402382989,1768669876916,-962.36,0.0001726,3]
[402382990,1768669876926,-500.0,0.0001726,3]
[402382991,1768669876936,-344.19716838,0.0001726,3]
[402382992,1768669876945,-500.0,0.0001726,3]
[402382993,1768669876955,-606.69,0.0001726,3]
[402382994,1768669876965,-500.0,0.0001726,3]
[402382995,1768669876975,-500.0,0.0001726,3]
[402382996,1768669876984,-1903.61,0.0001726,3]
[402382997,1768669876993,-500.0,0.0001726,3]
[402382998,1768669877003,-500.0,0.0001726,3]
[402382999,1768669877012,-500.0,0.0001726,3]
[402383001,1768669877023,-500.0,0.0001726,3]
[402383003,1768669877032,-500.0,0.0001726,3]
[402383005,1768669877043,-500.0,0.0001726,3]
[402383007,1768669877052,-500.0,0.0001726,3]
[402383009,1768669877064,-1200.0,0.0001726,2]
[402383011,1768669877074,-500.0,0.0001726,3]
[402383013,1768669877083,-500.0,0.0001726,3]
[402383015,1768669877093,-500.0,0.0001726,3]
[402383017,1768669877103,-1317.86,0.0001726,3]
[402383019,1768669877113,-500.0,0.0001726,3]
[402383021,1768669877123,-500.0,0.0001726,3]
[402383024,1768669877133,-500.0,0.0001726,3]
[402383026,1768669877142,-500.0,0.0001726,3]
[402383028,1768669877152,-500.0,0.0001726,3]
[402383030,1768669877161,-1739.91,0.0001726,3]
[402383032,1768669877170,-1530.43,0.0001726,3]
[402383033,1768669877179,-719.6,0.0001726,3]
[402383035,1768669877189,-813.96,0.0001726,3]
[402383038,1768669877199,-500.0,0.0001726,3]
[402383040,1768669877208,-745.72,0.0001726,3]
[402383042,1768669877217,-500.0,0.0001726,3]
[402383044,1768669877227,-500.0,0.0001726,3]
[402383046,1768669877236,-676.17,0.0001726,3]
[402383048,1768669877245,-500.0,0.0001726,3]
[402383050,1768669877255,-635.29,0.0001726,3]
[402383052,1768669877264,-500.0,0.0001726,3]
[402383054,1768669877273,-500.0,0.0001726,3]
[402383056,1768669877283,-729.75,0.0001726,3]
[402383058,1768669877292,-530.32,0.0001726,3]
[402383060,1768669877302,-500.0,0.0001726,3]
[402383062,1768669877311,-500.0,0.0001726,3]
[402383064,1768669877320,-500.0,0.0001726,3]
[402383066,1768669877330,-500.0,0.0001726,3]
[402383068,1768669877339,-500.0,0.0001726,3]
[402383070,1768669877349,-806.08,0.0001726,3]
[402383072,1768669877359,-500.0,0.0001726,3]
[402383074,1768669877368,-500.0,0.0001726,3]
[402383076,1768669877378,-500.0,0.0001726,3]
[402383078,1768669877387,-500.0,0.0001726,3]
[402383080,1768669877396,-500.0,0.0001726,3]
[402383082,1768669877406,-500.0,0.0001726,3]
[402383084,1768669877415,-500.0,0.0001726,3]
[402383086,1768669877424,-500.0,0.0001726,3]
[402383088,1768669877434,-500.0,0.0001726,3]
[402383090,1768669877443,-775.08,0.0001726,3]
[402383092,1768669877452,-1108.08,0.0001726,3]
[402383094,1768669877462,-1138.7,0.0001726,3]
[402383096,1768669877471,-500.0,0.0001726,3]
[402383098,1768669877480,-1823.52,0.0001726,3]
[402383100,1768669877490,-500.0,0.0001726,3]
[402383102,1768669877499,-500.0,0.0001726,3]
[402383104,1768669877508,-500.0,0.0001726,3]
[402383106,1768669877518,-834.18,0.0001726,3]
[402383108,1768669877527,-500.0,0.0001726,3]
[402383110,1768669877537,-500.0,0.0001726,3]
[402383112,1768669877546,-500.0,0.0001726,3]
[402383114,1768669877555,-500.0,0.0001726,3]
[402383116,1768669877569,-500.0,0.0001726,3]
[402383118,1768669877580,-838.02,0.0001726,3]
[402383121,1768669877590,-500.0,0.0001726,3]
[402383123,1768669877599,-639.48,0.0001726,3]
[402383125,1768669877610,-995.33,0.0001726,3]
[402383127,1768669877620,-500.0,0.0001726,3]
[402383129,1768669877630,-500.0,0.0001726,3]
[402383131,1768669877641,-500.0,0.0001726,3]
[402383133,1768669877651,-500.0,0.0001726,3]
[402383135,1768669877660,-1195.06,0.0001726,3]
[402383137,1768669877669,-500.0,0.0001726,3]
[402383140,1768669877690,-500.0,0.0001726,3]
[402383142,1768669877701,-938.53,0.0001726,3]
[402383145,1768669877711,-500.0,0.0001726,3]
[402383147,1768669877722,-500.0,0.0001726,3]
[402383149,1768669877733,-500.0,0.0001726,3]
[402383151,1768669877744,-500.0,0.0001726,3]
[402383153,1768669877754,-500.0,0.0001726,3]
[402383155,1768669877765,-1163.03,0.0001726,3]
[402383157,1768669877775,-664.56,0.0001726,3]
[402383159,1768669877785,-500.0,0.0001726,3]
[402383161,1768669877795,-539.14,0.0001726,3]
[402383163,1768669877805,-500.0,0.0001726,3]
[402383165,1768669877815,-826.62,0.0001726,3]
[402383167,1768669877825,-1311.5,0.0001726,3]
[402383170,1768669877836,-500.0,0.0001726,3]
[402383172,1768669877845,-526.93,0.0001726,3]
[402383174,1768669877856,-826.22,0.0001726,3]
[402383176,1768669877866,-500.0,0.0001726,3]
[402383178,1768669877877,-500.0,0.0001726,3]
[402383180,1768669877888,-500.0,0.0001726,3]
[402383182,1768669877898,-665.83,0.0001726,3]
[402383184,1768669877908,-1437.78,0.0001726,3]
[402383186,1768669877918,-911.88,0.0001726,3]
[402383188,1768669877929,-744.04,0.0001726,3]
[402383190,1768669877939,-500.0,0.0001726,3]
[402383193,1768669877949,-760.56,0.0001726,3]
[402383195,1768669877959,-1617.66,0.0001726,3]
[402383197,1768669877969,-500.0,0.0001726,3]
[402383199,1768669877980,-989.16,0.0001726,3]
[402383201,1768669877991,-548.8,0.0001726,3]
[402383203,1768669878001,-1392.58,0.0001726,3]
[402383205,1768669878011,-478.36647413,0.0001726,3]
[402383207,1768669878020,-500.0,0.0001726,3]
[402383209,1768669878030,-500.0,0.0001726,3]
[402383211,1768669878040,-500.0,0.0001726,3]
[402383213,1768669878050,-1290.77,0.0001726,3]
[402383215,1768669878061,-500.0,0.0001726,3]
[402383217,1768669878071,-1139.26,0.0001726,3]
[402383220,1768669878081,-500.0,0.0001726,3]
[402383222,1768669878091,-563.28,0.0001726,3]
[402383224,1768669878101,-1235.64,0.0001726,3]
[402383226,1768669878111,-1363.63,0.0001726,3]
[402383228,1768669878121,-500.0,0.0001726,3]
[402383230,1768669878131,-500.0,0.0001726,3]
[402383232,1768669878141,-584.78,0.0001726,3]
[402383234,1768669878151,-591.12,0.0001726,3]
[402383236,1768669878161,-500.0,0.0001726,3]
[402383238,1768669878171,-500.0,0.0001726,3]
[402383240,1768669878181,-500.0,0.0001726,3]
[402383242,1768669878191,-500.0,0.0001726,3]
[402383245,1768669878201,-500.0,0.0001726,3]
[402383247,1768669878211,-500.0,0.0001726,3]
[402383249,1768669878221,-500.0,0.0001726,3]
[402383251,1768669878231,-500.0,0.0001726,3]
[402383253,1768669878241,-500.0,0.0001726,3]
[402383255,1768669878252,-500.0,0.0001726,3]
[402383257,1768669878263,-659.9,0.0001726,3]
[402383259,1768669878272,-500.0,0.0001726,3]
[402383261,1768669878283,-562.53,0.0001726,3]
[402383263,1768669878293,-1216.62,0.0001726,3]
[402383266,1768669878304,-1459.54,0.0001726,3]
[402383268,1768669878314,-1408.31,0.0001726,3]
[402383270,1768669878323,-500.0,0.0001726,3]
[402383272,1768669878333,-500.0,0.0001726,3]
[402383274,1768669878344,-500.0,0.0001726,3]
[402383276,1768669878355,-1004.35,0.0001726,3]
[402383278,1768669878366,-2141.92,0.0001726,3]
[402383280,1768669878375,-500.0,0.0001726,3]
[402383282,1768669878385,-500.0,0.0001726,3]
[402383284,1768669878396,-1392.79,0.0001726,3]
[402383287,1768669878406,-500.0,0.0001726,3]
[402383289,1768669878416,-1651.69,0.0001726,3]
[402383291,1768669878427,-500.0,0.0001726,3]
[402383293,1768669878437,-500.0,0.0001726,3]
[402383295,1768669878447,-500.0,0.0001726,3]
[402383297,1768669878456,-500.0,0.0001726,3]
[402383299,1768669878467,-500.0,0.0001726,3]
[402383301,1768669878476,-500.0,0.0001726,3]
[402383303,1768669878486,-1022.52,0.0001726,3]
[402383305,1768669878496,-890.63,0.0001726,3]
[402383307,1768669878506,-500.0,0.0001726,3]
[402383309,1768669878516,-524.68,0.0001726,3]
[402383312,1768669878526,-525.47,0.0001726,3]
[402383314,1768669878536,-500.0,0.0001726,3]
[402383316,1768669878546,-1952.81,0.0001726,3]
[402383318,1768669878556,-255.78047731,0.0001726,3]
[402383320,1768669878569,-500.0,0.0001726,3]
[402383322,1768669878578,-702.75,0.0001726,3]
[402383324,1768669878588,-500.0,0.0001726,3]
[402383326,1768669878598,-1977.43,0.0001726,3]
[402383328,1768669878609,-633.32,0.0001726,3]
[402383330,1768669878620,-500.0,0.0001726,3]
[402383332,1768669878630,-500.0,0.0001726,3]
[402383334,1768669878640,-500.0,0.0001726,3]
[402383337,1768669878653,-769.6,0.0001726,3]
[402383339,1768669878663,-532.65564852,0.0001726,2]
[402383341,1768669878673,-500.0,0.0001726,3]
[402383343,1768669878683,-500.0,0.0001726,3]
[402383345,1768669878692,-500.0,0.0001726,3]
[402383347,1768669878702,-500.0,0.0001726,3]
[402383349,1768669878712,-500.0,0.0001726,3]
[402383351,1768669878722,-500.0,0.0001726,3]
[402383353,1768669878732,-808.67,0.0001726,3]
[402383355,1768669878742,-500.0,0.0001726,3]
[402383357,1768669878751,-505.87,0.0001726,3]
[402383359,1768669878762,-500.0,0.0001726,3]
[402383362,1768669878772,-1351.71,0.0001726,3]
[402383364,1768669878782,-500.0,0.0001726,3]
[402383366,1768669878792,-1112.95,0.0001726,3]
[402383368,1768669878802,-1241.58,0.0001726,3]
[402383370,1768669878812,-500.0,0.0001726,3]
[402383372,1768669878823,-714.16,0.0001726,3]
[402383374,1768669878832,-1757.22,0.0001726,3]
[402383376,1768669878842,-500.0,0.0001726,3]
[402383378,1768669878853,-500.0,0.0001726,3]
[402383380,1768669878864,-856.76,0.0001726,3]
[402383382,1768669878874,-500.0,0.0001726,3]
[402383384,1768669878885,-576.09,0.0001726,3]
[402383386,1768669878895,-155.57377074,0.0001726,3]
[402383389,1768669878906,-1716.41,0.0001726,3]
[402383391,1768669878916,-762.99,0.0001726,3]
[402383393,1768669878927,-974.44,0.0001726,3]
[402383395,1768669878937,-500.0,0.0001726,3]
[402383397,1768669878947,-500.0,0.0001726,3]
[402383399,1768669878957,-500.0,0.0001726,3]
[402383401,1768669878966,-500.0,0.0001726,3]
[402383403,1768669878976,-500.0,0.0001726,3]
[402383405,1768669878986,-500.0,0.0001726,3]
[402383407,1768669878996,-500.0,0.0001726,3]
[402383409,1768669879007,-500.0,0.0001726,3]
[402383411,1768669879016,-500.0,0.0001726,3]
[402383413,1768669879027,-500.0,0.0001726,3]
[402383437,1768669879131,-605.29,0.0001726,3]
[402383440,1768669879259,-500.0,0.0001726,3]
[402383442,1768669879269,-500.0,0.0001726,3]
[402383444,1768669879278,-500.0,0.0001726,3]
[402383446,1768669879288,-500.0,0.0001726,3]
[402383448,1768669879297,-1502.15,0.0001726,3]
[402383450,1768669879306,-534.13,0.0001726,3]
[402383452,1768669879315,-439.35438374,0.0001726,3]
[402383454,1768669879324,-778.71,0.0001726,3]
[402383456,1768669879334,-1453.27,0.0001726,3]
[402383458,1768669879344,-1503.68,0.0001726,3]
[402383460,1768669879353,-500.0,0.0001726,3]
[402383462,1768669879363,-154.03719813,0.0001726,3]
[402383464,1768669879372,-500.0,0.0001726,3]
[402383466,1768669879382,-500.0,0.0001726,3]
[402383468,1768669879392,-500.0,0.0001726,3]
[402383470,1768669879401,-500.0,0.0001726,3]
[402383472,1768669879411,-7566.04,0.0001726,3]
[402383474,1768669879421,-2006.78,0.0001726,3]
[402383476,1768669879430,-709.42,0.0001726,3]
[402383478,1768669879440,-2532.74,0.0001726,3]
[402383480,1768669879449,-500.0,0.0001726,3]
[402383482,1768669879459,-277.37336634,0.0001726,3]
[402383484,1768669879468,-500.0,0.0001726,3]
[402383486,1768669879477,-259.47517722,0.0001726,3]
[402383488,1768669879487,-500.0,0.0001726,3]
[402383490,1768669879496,-876.59,0.0001726,3]
[402383492,1768669879505,-500.0,0.0001726,3]
[402383494,1768669879514,-500.0,0.0001726,3]
[402383496,1768669879524,-500.0,0.0001726,3]
[402383498,1768669879533,-1597.27,0.0001726,3]
[402383500,1768669879542,-500.0,0.0001726,3]
[402383502,1768669879551,-500.0,0.0001726,3]
[402383504,1768669879561,-500.0,0.0001726,3]
[402383506,1768669879572,-731.96,0.0001726,3]
[402383508,1768669879581,-500.0,0.0001726,3]
[402383510,1768669879591,-887.59,0.0001726,3]
[402383512,1768669879600,-500.0,0.0001726,3]
[402383514,1768669879609,-577.24,0.0001726,3]
[402383516,1768669879618,-771.67,0.0001726,3]
[402383518,1768669879627,-2025.2,0.0001726,3]
[402383520,1768669879637,-500.0,0.0001726,3]
[402383522,1768669879646,-500.0,0.0001726,3]
[402383524,1768669879655,-1494.01,0.0001726,3]
[402383526,1768669879664,-500.0,0.0001726,3]
[402383528,1768669879673,-806.92,0.0001726,3]
[402383530,1768669879683,-500.0,0.0001726,3]
[402383532,1768669879692,-500.0,0.0001726,3]
[402383534,1768669879701,-500.0,0.0001726,3]
[402383536,1768669879711,-500.0,0.0001726,3]
[402383538,1768669879721,-582.23,0.0001726,3]
[402383540,1768669879731,-877.12,0.0001726,3]
[402383542,1768669879741,-500.0,0.0001726,3]
[402383544,1768669879751,-890.53,0.0001726,3]
[402383546,1768669879762,-1695.64,0.0001726,3]
[402383548,1768669879772,-648.78,0.0001726,3]
[402383550,1768669879781,-1396.54,0.0001726,3]
[402383553,1768669879791,-500.0,0.0001726,3]
[402383555,1768669879801,-822.65,0.0001726,3]
[402383557,1768669879811,-500.0,0.0001726,3]
[402383558,1768669879821,-1860.69,0.0001726,3]
[402383560,1768669879830,-563.95,0.0001726,3]
[402383561,1768669879839,-500.0,0.0001726,3]
[402383562,1768669879850,-1121.41,0.0001726,3]
[402383563,1768669879860,-681.26,0.0001726,3]
[402383564,1768669879870,-500.0,0.0001726,3]
[402383565,1768669879880,-500.0,0.0001726,3]
[402383566,1768669879890,-1574.77,0.0001726,3]
[402383567,1768669879900,-500.0,0.0001726,3]
[402383568,1768669879909,-710.07,0.0001726,3]
[402383569,1768669879919,-593.25,0.0001726,3]
[402383570,1768669879929,-819.68,0.0001726,3]
[402383571,1768669879939,-547.02,0.0001726,3]
[402383572,1768669879949,-500.0,0.0001726,3]
[402383573,1768669879958,-541.55,0.0001726,3]
[402383574,1768669879968,-898.93,0.0001726,3]
[402383575,1768669879977,-500.0,0.0001726,3]
[402383576,1768669879987,-500.0,0.0001726,3]
[402383577,1768669879997,-500.0,0.0001726,3]
[402383578,1768669880007,-514.7,0.0001726,3]
[402383579,1768669880017,-500.0,0.0001726,3]
[402383581,1768669880026,-1717.69,0.0001726,3]
[402383582,1768669880036,-158.66112729,0.0001726,3]
[402383584,1768669880045,-1181.35,0.0001726,3]
[402383586,1768669880055,-500.0,0.0001726,3]
[402383588,1768669880065,-500.0,0.0001726,3]
[402383590,1768669880075,-870.07,0.0001726,3]
[402383592,1768669880085,-1177.53,0.0001726,3]
[402383594,1768669880098,-500.0,0.0001726,3]
[402383596,1768669880107,-500.0,0.0001726,3]
[402383598,1768669880118,-1477.98,0.0001726,3]
[402383600,1768669880127,-548.99,0.0001726,3]
[402383602,1768669880137,-1364.59,0.0001726,3]
[402383604,1768669880146,-500.0,0.0001726,3]
[402383606,1768669880156,-500.0,0.0001726,3]
[402383608,1768669880166,-1272.0,0.0001726,3]
[402383610,1768669880175,-500.0,0.0001726,3]
[402383613,1768669880185,-500.0,0.0001726,3]
[402383614,1768669880194,-500.0,0.0001726,3]
[402383616,1768669880203,-1023.93,0.0001726,3]
[402383619,1768669880213,-1022.84,0.0001726,3]
[402383620,1768669880223,-516.54,0.0001726,3]
[402383623,1768669880233,-500.0,0.0001726,3]
[402383625,1768669880243,-3403.79,0.0001726,3]
[402383627,1768669880253,-770.4,0.0001726,3]
[402383629,1768669880262,-1414.69,0.0001726,3]
[402383631,1768669880272,-500.0,0.0001726,3]
[402383633,1768669880282,-500.0,0.0001726,3]
[402383635,1768669880291,-480.06845953,0.0001726,3]
[402383637,1768669880300,-690.86,0.0001726,3]
[402383639,1768669880309,-743.92,0.0001726,3]
[402383641,1768669880319,-500.0,0.0001726,3]
[402383643,1768669880329,-500.0,0.0001726,3]
[402383645,1768669880339,-1368.68,0.0001726,3]
[402383647,1768669880348,-692.37,0.0001726,3]
[402383649,1768669880358,-500.0,0.0001726,3]
[402383651,1768669880368,-500.0,0.0001726,3]
[402383653,1768669880378,-500.0,0.0001726,3]
[402383655,1768669880387,-674.52,0.0001726,3]
[402383657,1768669880396,-547.26,0.0001726,3]
[402383659,1768669880406,-500.0,0.0001726,3]
[402383661,1768669880416,-500.0,0.0001726,3]
[402383663,1768669880425,-529.66608909,0.0001726,3]
[402383665,1768669880435,-417.85698666,0.0001726,3]
[402383667,1768669880444,-500.0,0.0001726,3]
[402383669,1768669880453,-500.0,0.0001726,3]
[402383671,1768669880462,-774.57,0.0001726,3]
[402383673,1768669880473,-1114.84,0.0001726,3]
[402383675,1768669880485,-500.0,0.0001726,3]
[402383677,1768669880500,-500.0,0.0001726,3]
[402383679,1768669880515,-500.0,0.0001726,3]
[402383681,1768669880527,-500.0,0.0001726,3]
[402383683,1768669880542,-14376.21,0.0001726,3]
[402383685,1768669880557,-1568.81,0.0001726,3]
[402383687,1768669880577,-1380.77,0.0001726,3]
[402383689,1768669880588,-500.0,0.0001726,3]
[402383691,1768669880599,-538.55531083,0.0001726,3]
[402383693,1768669880609,-500.0,0.0001726,3]
[402383695,1768669880619,-500.0,0.0001726,3]
[402383697,1768669880630,-680.81,0.0001726,3]
[402383699,1768669880640,-702.8,0.0001726,3]
[402383701,1768669880653,-558.44,0.0001726,3]
[402383703,1768669880662,-1285.11,0.0001726,3]
[402383705,1768669880673,-500.0,0.0001726,3]
[402383707,1768669880683,-1541.54,0.0001726,3]
[402383709,1768669880692,-885.92,0.0001726,3]
[402383711,1768669880703,-552.93,0.0001726,3]
[402383713,1768669880712,-274.62103674,0.0001726,3]
[402383715,1768669880723,-500.0,0.0001726,3]
[402383717,1768669880732,-500.0,0.0001726,3]
[402383719,1768669880744,-500.0,0.0001726,3]
[402383721,1768669880753,-267.46419582,0.0001726,3]
[402383723,1768669880763,-500.0,0.0001726,3]
[402383725,1768669880774,-539.86,0.0001726,3]
[402383727,1768669880785,-1422.11,0.0001726,3]
[402383729,1768669880795,-895.54,0.0001726,3]
[402383731,1768669880804,-581.61,0.0001726,3]
[402383733,1768669880814,-1148.17,0.0001726,3]
[402383736,1768669880826,-878.96,0.0001726,3]
[402383738,1768669880837,-500.0,0.0001726,3]
[402383740,1768669880847,-2589.16,0.0001726,3]
[402383742,1768669880858,-500.0,0.0001726,3]
[402383744,1768669880867,-500.0,0.0001726,3]
[402383745,1768669880877,-500.0,0.0001726,3]
[402383747,1768669880887,-205.0424937,0.0001726,3]
[402383750,1768669880897,-693.13,0.0001726,3]
[402383751,1768669880906,-1236.21,0.0001726,3]
[402383754,1768669880916,-632.1,0.0001726,3]
[402383756,1768669880926,-500.0,0.0001726,3]
[402383758,1768669880935,-500.0,0.0001726,3]
[402383760,1768669880944,-500.0,0.0001726,3]
[402383762,1768669880954,-1103.35,0.0001726,3]
[402383764,1768669880963,-1025.61,0.0001726,3]
[402383766,1768669880973,-500.0,0.0001726,3]
[402383768,1768669880982,-500.0,0.0001726,3]
[402383770,1768669880991,-500.0,0.0001726,3]
[402383772,1768669881000,-500.0,0.0001726,3]
[402383774,1768669881009,-500.0,0.0001726,3]
[402383776,1768669881018,-500.0,0.0001726,3]
[402383778,1768669881028,-500.0,0.0001726,3]
[402383780,1768669881038,-500.0,0.0001726,3]
[402383782,1768669881048,-500.0,0.0001726,3]
[402383784,1768669881057,-500.0,0.0001726,3]
[402383786,1768669881067,-1530.35,0.0001726,3]
[402383788,1768669881076,-1293.36,0.0001726,3]
[402383790,1768669881085,-1411.66,0.0001726,3]
[402383792,1768669881094,-1180.34,0.0001726,3]
[402383794,1768669881104,-500.0,0.0001726,3]
[402383796,1768669881113,-500.0,0.0001726,3]
[402383798,1768669881122,-1399.24,0.0001726,3]
[402383800,1768669881132,-575.62,0.0001726,3]
[402383802,1768669881141,-500.0,0.0001726,3]
[402383804,1768669881150,-500.0,0.0001726,3]
[402383806,1768669881159,-1032.1,0.0001726,3]
[402383808,1768669881168,-500.0,0.0001726,3]
[402383810,1768669881178,-375.27196908,0.0001726,3]
[402383812,1768669881188,-609.57,0.0001726,3]
[402383814,1768669881197,-500.0,0.0001726,3]
[402383816,1768669881207,-1569.6,0.0001726,3]
[402383818,1768669881217,-338.02289746,0.0001726,3]
[402383820,1768669881229,-500.0,0.0001726,3]
[402383822,1768669881249,-500.0,0.0001726,3]
[402383824,1768669881259,-500.0,0.0001726,3]
[402383827,1768669881269,-1051.96,0.0001726,3]
[402383829,1768669881279,-500.0,0.0001726,3]
[402383831,1768669881289,-1321.15,0.0001726,3]
[402383833,1768669881298,-500.0,0.0001726,3]
[402383835,1768669881308,-500.0,0.0001726,3]
[402383837,1768669881317,-500.0,0.0001726,3]
[402383839,1768669881327,-545.77,0.0001726,3]
[402383841,1768669881337,-500.0,0.0001726,3]
[402383843,1768669881347,-500.0,0.0001726,3]
[402383845,1768669881356,-500.0,0.0001726,3]
[402383847,1768669881365,-500.0,0.0001726,3]
[402383849,1768669881375,-500.0,0.0001726,3]
[402383851,1768669881384,-500.0,0.0001726,3]
[402383853,1768669881394,-500.0,0.0001726,3]
[402383855,1768669881403,-1628.67,0.0001726,3]
[402383856,1768669881412,-1173.22,0.0001726,3]
[402383858,1768669881422,-500.0,0.0001726,3]
[402383859,1768669881432,-500.0,0.0001726,3]
[402383861,1768669881442,-500.0,0.0001726,2]
[402383862,1768669881451,-500.0,0.0001726,3]
[402383864,1768669881461,-539.32,0.0001726,3]
[402383865,1768669881470,-1249.71,0.0001726,3]
[402383867,1768669881480,-500.0,0.0001726,3]
[402383868,1768669881489,-1452.79,0.0001726,3]
[402383870,1768669881499,-937.01,0.0001726,3]
[402383871,1768669881508,-500.0,0.0001726,3]
[402383873,1768669881517,-972.71,0.0001726,3]
[402383874,1768669881526,-739.58,0.0001726,3]
[402383876,1768669881536,-1972.54,0.0001726,3]
[402383877,1768669881545,-849.49,0.0001726,3]
[402383879,1768669881554,-500.0,0.0001726,3]
[402383880,1768669881564,-372.96596375,0.0001726,3]
[402383882,1768669881578,-500.0,0.0001726,3]
[402383884,1768669881588,-500.0,0.0001726,3]
[402383889,1768669881669,-500.0,0.0001726,3]
[402383891,1768669881678,-500.0,0.0001726,3]
[402383892,1768669881688,-955.79,0.0001726,3]
[402383894,1768669881697,-849.77,0.0001726,3]
[402383895,1768669881707,-500.0,0.0001726,3]
[402383897,1768669881716,-500.0,0.0001726,3]
[402383899,1768669881727,-500.0,0.0001726,3]
[402383900,1768669881736,-2175.59,0.0001726,3]
[402383902,1768669881746,-2633.13,0.0001726,3]
[402383904,1768669881755,-500.0,0.0001726,2]
[402383905,1768669881765,-500.0,0.0001726,3]
[402383907,1768669881775,-500.0,0.0001726,2]
[402383908,1768669881784,-2398.4119403,0.00017289,2]
[402383910,1768669881794,-199.06654963,0.00017289,2]
[402383912,1768669881803,-496.47127164,0.00017289,2]
[402383913,1768669881812,-33454.72959,0.00017289,2]
[402383915,1768669881821,-247.06521876,0.00017332,25]
[402383916,1768669881830,-208.2,0.00017335,2]
[402383918,1768669881840,-5000.0,0.00017412,2]
[402383919,1768669881849,-1897.0,0.00017518,2]
[402383921,1768669881859,-500.0,0.00017534,3]
[402383923,1768669881869,-673.12713185,0.00017534,3]
[402383924,1768669881877,-500.0,0.00017534,3]
[402383926,1768669881887,-500.0,0.00017534,3]
[402383927,1768669881896,-500.0,0.00017534,3]
[402383929,1768669881906,-500.0,0.00017534,3]
[402383931,1768669881915,-500.0,0.00017534,3]
[402383932,1768669881925,-500.0,0.00017534,3]
[402383934,1768669881934,-500.0,0.00017534,3]
[402383935,1768669881943,-697.21,0.00017534,3]
[402383937,1768669881953,-500.0,0.00017534,3]
[402383938,1768669881963,-500.0,0.00017534,3]
[402383940,1768669881972,-1537.06,0.00017534,3]
[402383941,1768669881981,-562.34469649,0.00017534,3]
[402383943,1768669881991,-500.0,0.00017534,3]
[402383945,1768669882000,-500.0,0.00017534,3]
[402383946,1768669882009,-500.0,0.00017534,3]
[402383948,1768669882018,-727.37,0.00017534,3]
[402383949,1768669882027,-500.0,0.00017534,3]
[402383951,1768669882036,-500.0,0.00017534,3]
[402383953,1768669882046,-500.0,0.00017534,3]
[402383954,1768669882055,-674.4,0.00017534,3]
[402383956,1768669882064,-1051.61,0.00017534,3]
[402383957,1768669882072,-500.0,0.00017534,3]
[402383959,1768669882081,-526.97,0.00017534,3]
[402383960,1768669882091,-500.0,0.00017534,3]
[402383962,1768669882100,-500.0,0.00017534,3]
[402383964,1768669882109,-500.0,0.00017534,3]